[Event "Titled Tuesday Blitz November 14 Early 2023"]
[White "Buchenau, Frank"]
[Black "Samarth J Rao"]
[WhiteFideId "4604350"]
[BlackFideId "46652370"]
[WhiteElo "2446"]
[BlackElo "2035"]
[Result "0-1"]
[Round "2"]
[TimeControl "180+1"]
[Date "2023.11.14"]
[WhiteClock "0:00:57"]
[BlackClock "0:01:42"]
[Board "233"]

1. e4 {[%clk 0:03:00]}  c5 {[%clk 0:02:57]} 2. Nf3 {[%clk 0:03:00]}  e6 {[%clk 0:02:57]} 3. d4 {[%clk 0:03:00]}  cxd4 {[%clk 0:02:58]} 4. Nxd4 {[%clk 0:03:00]}  a6 {[%clk 0:02:58]} 5. Bd3 {[%clk 0:02:59]}  Qc7 {[%clk 0:02:59]} 6. O-O {[%clk 0:02:58]}  Nc6 {[%clk 0:02:58]} 7. Be3 {[%clk 0:02:49]}  Nf6 {[%clk 0:02:56]} 8. Nxc6 {[%clk 0:02:47]}  dxc6 {[%clk 0:02:56]} 9. Nd2 {[%clk 0:02:40]}  e5 {[%clk 0:02:55]} 10. Nc4 {[%clk 0:02:37]}  b5 {[%clk 0:02:50]} 11. Nb6 {[%clk 0:02:30]}  Rb8 {[%clk 0:02:50]} 12. Nxc8 {[%clk 0:02:29]}  Rxc8 {[%clk 0:02:51]} 13. a4 {[%clk 0:02:22]}  Qb7 {[%clk 0:02:30]} 14. axb5 {[%clk 0:02:21]}  cxb5 {[%clk 0:02:31]} 15. f4 {[%clk 0:02:12]}  Bc5 {[%clk 0:02:29]} 16. Bxc5 {[%clk 0:02:09]}  Rxc5 {[%clk 0:02:30]} 17. Qf3 {[%clk 0:01:53]}  O-O {[%clk 0:02:16]} 18. f5 {[%clk 0:01:40]}  Qb6 {[%clk 0:02:12]} 19. Kh1 {[%clk 0:01:39]}  Rc7 {[%clk 0:02:09]} 20. g4 {[%clk 0:01:36]}  Nd7 {[%clk 0:02:07]} 21. g5 {[%clk 0:01:33]}  Nc5 {[%clk 0:02:05]} 22. f6 {[%clk 0:01:26]}  Ne6 {[%clk 0:01:54]} 23. fxg7 {[%clk 0:01:22]}  Nxg7 {[%clk 0:01:54]} 24. Qf6 {[%clk 0:01:18]}  Rc6 {[%clk 0:01:44]} 25. Qxe5 {[%clk 0:01:18]}  Re6 {[%clk 0:01:44]} 26. Qf5 {[%clk 0:00:57]}  Nxf5 {[%clk 0:01:42]} 0-1


[Site "https://www.chess.com"]

[Event "Titled Tuesday Blitz November 14 Early 2023"]
[White "taleslascando"]
[Black "Fernandez, Michael"]
[BlackFideId "5803560"]
[WhiteElo "2011"]
[BlackElo "2444"]
[Result "0-1"]
[Round "2"]
[TimeControl "180+1"]
[Date "2023.11.14"]
[WhiteClock "0:00:00"]
[BlackClock "0:00:30"]
[Board "235"]

1. e4 {[%clk 0:02:55]}  c6 {[%clk 0:03:00]} 2. d4 {[%clk 0:02:55]}  d5 {[%clk 0:01:44]} 3. exd5 {[%clk 0:02:47]}  cxd5 {[%clk 0:01:44]} 4. Bd3 {[%clk 0:02:45]}  Nc6 {[%clk 0:01:41]} 5. c3 {[%clk 0:02:46]}  g6 {[%clk 0:01:40]} 6. Bf4 {[%clk 0:02:32]}  Bf5 {[%clk 0:01:38]} 7. Bxf5 {[%clk 0:02:27]}  gxf5 {[%clk 0:01:18]} 8. Nf3 {[%clk 0:02:24]}  e6 {[%clk 0:01:17]} 9. Qb3 {[%clk 0:02:23]}  Qb6 {[%clk 0:01:14]} 10. Qxb6 {[%clk 0:02:22]}  axb6 {[%clk 0:01:13]} 11. a3 {[%clk 0:02:07]}  b5 {[%clk 0:01:11]} 12. O-O {[%clk 0:02:04]}  Kd7 {[%clk 0:01:00]} 13. Nbd2 {[%clk 0:02:03]}  Bd6 {[%clk 0:00:59]} 14. Bxd6 {[%clk 0:01:58]}  Kxd6 {[%clk 0:01:00]} 15. Nb3 {[%clk 0:01:53]}  b6 {[%clk 0:01:00]} 16. Rfe1 {[%clk 0:01:43]}  Nge7 {[%clk 0:00:58]} 17. Ne5 {[%clk 0:01:37]}  Rhf8 {[%clk 0:00:53]} 18. Nd2 {[%clk 0:01:35]}  Nxe5 {[%clk 0:00:51]} 19. Rxe5 {[%clk 0:01:22]}  Nc6 {[%clk 0:00:48]} 20. Re3 {[%clk 0:01:18]}  b4 {[%clk 0:00:48]} 21. cxb4 {[%clk 0:00:44]}  Nxd4 {[%clk 0:00:46]} 22. Rc1 {[%clk 0:00:41]}  Rfc8 {[%clk 0:00:43]} 23. Rxc8 {[%clk 0:00:31]}  Rxc8 {[%clk 0:00:43]} 24. g3 {[%clk 0:00:30]}  Rc2 {[%clk 0:00:36]} 25. Nf3 {[%clk 0:00:16]}  f4 {[%clk 0:00:33]} 26. Nxd4 {[%clk 0:00:11]}  Rc1+ {[%clk 0:00:32]} 27. Kg2 {[%clk 0:00:09]}  fxe3 {[%clk 0:00:33]} 28. fxe3 {[%clk 0:00:09]}  e5 {[%clk 0:00:33]} 29. Nf5+ {[%clk 0:00:08]}  Ke6 {[%clk 0:00:30]} 30. g4 {[%clk 0:00:08]}  Rc2+ {[%clk 0:00:30]} 31. Kf3 {[%clk 0:00:08]}  Rxb2 {[%clk 0:00:31]} 32. h4 {[%clk 0:00:06]}  h5 {[%clk 0:00:30]} 33. gxh5 {[%clk 0:00:00]}  Kxf5 {[%clk 0:00:30]} 0-1


[Site "https://www.chess.com"]

[Event "Titled Tuesday Blitz November 14 Early 2023"]
[White "Friedland, Moshe"]
[Black "Perez Cruz, Adianet"]
[WhiteFideId "2812843"]
[BlackFideId "3510115"]
[WhiteElo "2443"]
[BlackElo "2002"]
[Result "1/2-1/2"]
[Round "2"]
[TimeControl "180+1"]
[Date "2023.11.14"]
[WhiteClock "0:00:04"]
[BlackClock "0:00:42"]
[Board "236"]

1. e4 {[%clk 0:03:00]}  c6 {[%clk 0:02:59]} 2. d4 {[%clk 0:03:00]}  d5 {[%clk 0:03:00]} 3. Nc3 {[%clk 0:03:00]}  dxe4 {[%clk 0:03:00]} 4. Nxe4 {[%clk 0:03:01]}  Nf6 {[%clk 0:03:00]} 5. Nxf6+ {[%clk 0:03:01]}  gxf6 {[%clk 0:03:01]} 6. c3 {[%clk 0:03:00]}  Bf5 {[%clk 0:03:01]} 7. Nf3 {[%clk 0:02:59]}  Nd7 {[%clk 0:03:01]} 8. g3 {[%clk 0:02:59]}  Be4 {[%clk 0:03:00]} 9. Bg2 {[%clk 0:02:58]}  e6 {[%clk 0:03:00]} 10. O-O {[%clk 0:02:57]}  Nb6 {[%clk 0:03:00]} 11. a4 {[%clk 0:02:54]}  a5 {[%clk 0:02:54]} 12. Bf4 {[%clk 0:02:48]}  Bd6 {[%clk 0:02:53]} 13. Bxd6 {[%clk 0:02:33]}  Qxd6 {[%clk 0:02:54]} 14. Qb3 {[%clk 0:02:31]}  Qc7 {[%clk 0:02:45]} 15. c4 {[%clk 0:02:25]}  h5 {[%clk 0:02:26]} 16. Rfe1 {[%clk 0:02:12]}  f5 {[%clk 0:02:00]} 17. Ne5 {[%clk 0:02:09]}  Bxg2 {[%clk 0:02:01]} 18. Kxg2 {[%clk 0:02:08]}  O-O-O {[%clk 0:01:57]} 19. Nxf7 {[%clk 0:02:03]}  Qxf7 {[%clk 0:01:54]} 20. Qxb6 {[%clk 0:02:03]}  h4 {[%clk 0:01:50]} 21. h3 {[%clk 0:01:03]}  hxg3 {[%clk 0:01:48]} 22. fxg3 {[%clk 0:01:00]}  Qh5 {[%clk 0:01:39]} 23. h4 {[%clk 0:01:00]}  f4 {[%clk 0:01:32]} 24. Qc5 {[%clk 0:00:29]}  Qxc5 {[%clk 0:01:26]} 25. dxc5 {[%clk 0:00:28]}  fxg3 {[%clk 0:01:25]} 26. Kxg3 {[%clk 0:00:24]}  Rd3+ {[%clk 0:01:24]} 27. Kg4 {[%clk 0:00:15]}  Rd4+ {[%clk 0:01:21]} 28. Kg3 {[%clk 0:00:10]}  Rxc4 {[%clk 0:01:20]} 29. Rxe6 {[%clk 0:00:10]}  Rxc5 {[%clk 0:01:20]} 30. Rf1 {[%clk 0:00:09]}  Rc4 {[%clk 0:01:05]} 31. Ref6 {[%clk 0:00:04]}  Rg8+ {[%clk 0:01:03]} 32. Kh3 {[%clk 0:00:04]}  Rgg4 {[%clk 0:01:02]} 33. Rf8+ {[%clk 0:00:04]}  Kc7 {[%clk 0:01:02]} 34. h5 {[%clk 0:00:03]}  Rh4+ {[%clk 0:01:01]} 35. Kg3 {[%clk 0:00:04]}  Rxh5 {[%clk 0:01:02]} 36. R1f7+ {[%clk 0:00:04]}  Kb6 {[%clk 0:01:01]} 37. Rb8 {[%clk 0:00:05]}  Rg5+ {[%clk 0:00:53]} 38. Kf3 {[%clk 0:00:06]}  Kc5 {[%clk 0:00:53]} 39. Rfxb7 {[%clk 0:00:06]}  Rf5+ {[%clk 0:00:53]} 40. Kg3 {[%clk 0:00:06]}  Rxa4 {[%clk 0:00:53]} 41. Rb3 {[%clk 0:00:05]}  Rd5 {[%clk 0:00:52]} 42. Rc3+ {[%clk 0:00:05]}  Kd4 {[%clk 0:00:49]} 43. Rc8 {[%clk 0:00:05]}  Ra2 {[%clk 0:00:43]} 44. R8xc6 {[%clk 0:00:05]}  Rxb2 {[%clk 0:00:43]} 45. R6c4+ {[%clk 0:00:05]}  Ke5 {[%clk 0:00:43]} 46. Re3+ {[%clk 0:00:06]}  Kd6 {[%clk 0:00:43]} 47. Rce4 {[%clk 0:00:06]}  Rb4 {[%clk 0:00:43]} 48. Re6+ {[%clk 0:00:06]}  Kc5 {[%clk 0:00:43]} 49. Rc3+ {[%clk 0:00:07]}  Rc4 {[%clk 0:00:44]} 50. Ra3 {[%clk 0:00:06]}  a4 {[%clk 0:00:43]} 51. Ra6 {[%clk 0:00:06]}  Rdd4 {[%clk 0:00:42]} 52. Ra5+ {[%clk 0:00:05]}  Kb6 {[%clk 0:00:41]} 53. Ra8 {[%clk 0:00:05]}  Rb4 {[%clk 0:00:41]} 54. Ra2 {[%clk 0:00:05]}  Rd3+ {[%clk 0:00:39]} 55. Kf2 {[%clk 0:00:06]}  Kb5 {[%clk 0:00:39]} 56. Rb8+ {[%clk 0:00:04]}  Kc4 {[%clk 0:00:39]} 57. Ra8 {[%clk 0:00:04]}  Kb3 {[%clk 0:00:39]} 58. Re2 {[%clk 0:00:05]}  Rc3 {[%clk 0:00:39]} 59. Re1 {[%clk 0:00:04]}  Rc2+ {[%clk 0:00:39]} 60. Kf3 {[%clk 0:00:03]}  a3 {[%clk 0:00:40]} 61. Re3+ {[%clk 0:00:03]}  Rc3 {[%clk 0:00:39]} 62. Rxc3+ {[%clk 0:00:03]}  Kxc3 {[%clk 0:00:40]} 63. Rxa3+ {[%clk 0:00:04]}  Kc4 {[%clk 0:00:41]} 64. Re3 {[%clk 0:00:04]}  Rb3 {[%clk 0:00:41]} 65. Rxb3 {[%clk 0:00:04]}  Kxb3 {[%clk 0:00:42]} 1/2-1/2


[Site "https://www.chess.com"]

[Event "Titled Tuesday Blitz November 14 Early 2023"]
[White "Joie, Sebastien"]
[Black "IsaqueGoncalvesSanto"]
[WhiteFideId "650420"]
[WhiteElo "2439"]
[BlackElo "1882"]
[Result "1-0"]
[Round "2"]
[TimeControl "180+1"]
[Date "2023.11.14"]
[WhiteClock "0:00:26"]
[BlackClock "0:00:18"]
[Board "238"]

1. d4 {[%clk 0:02:47]}  d5 {[%clk 0:02:59]} 2. c4 {[%clk 0:02:47]}  e6 {[%clk 0:02:59]} 3. Nc3 {[%clk 0:02:47]}  Nf6 {[%clk 0:02:58]} 4. Nf3 {[%clk 0:02:47]}  c6 {[%clk 0:02:58]} 5. e3 {[%clk 0:02:47]}  Bd6 {[%clk 0:02:56]} 6. Bd3 {[%clk 0:02:48]}  O-O {[%clk 0:02:56]} 7. O-O {[%clk 0:02:48]}  dxc4 {[%clk 0:02:50]} 8. Bxc4 {[%clk 0:02:48]}  b5 {[%clk 0:02:50]} 9. Bd3 {[%clk 0:02:48]}  a6 {[%clk 0:02:51]} 10. e4 {[%clk 0:02:41]}  Bb4 {[%clk 0:02:47]} 11. e5 {[%clk 0:02:39]}  Nd5 {[%clk 0:02:45]} 12. Nxd5 {[%clk 0:02:35]}  exd5 {[%clk 0:02:41]} 13. Bxh7+ {[%clk 0:02:33]}  Kxh7 {[%clk 0:02:40]} 14. Ng5+ {[%clk 0:02:32]}  Kg8 {[%clk 0:02:40]} 15. Qd3 {[%clk 0:01:55]}  g6 {[%clk 0:02:20]} 16. e6 {[%clk 0:01:54]}  f5 {[%clk 0:02:07]} 17. h4 {[%clk 0:01:30]}  Qf6 {[%clk 0:01:58]} 18. Bf4 {[%clk 0:01:28]}  Bxe6 {[%clk 0:01:51]} 19. a3 {[%clk 0:01:27]}  Ba5 {[%clk 0:01:32]} 20. Be5 {[%clk 0:01:18]}  Qe7 {[%clk 0:01:31]} 21. b4 {[%clk 0:01:03]}  Bb6 {[%clk 0:01:27]} 22. Rfe1 {[%clk 0:01:03]}  Nd7 {[%clk 0:01:24]} 23. Bd6 {[%clk 0:01:00]}  Qf6 {[%clk 0:01:22]} 24. Rxe6 {[%clk 0:00:45]}  Qxd4 {[%clk 0:01:13]} 25. Qxd4 {[%clk 0:00:39]}  Bxd4 {[%clk 0:01:12]} 26. Rd1 {[%clk 0:00:39]}  Bf6 {[%clk 0:00:55]} 27. Bxf8 {[%clk 0:00:36]}  Rxf8 {[%clk 0:00:52]} 28. Rxc6 {[%clk 0:00:36]}  Nb8 {[%clk 0:00:47]} 29. Rb6 {[%clk 0:00:31]}  d4 {[%clk 0:00:39]} 30. Ne6 {[%clk 0:00:29]}  Re8 {[%clk 0:00:30]} 31. Nf4 {[%clk 0:00:29]}  Kf7 {[%clk 0:00:27]} 32. Nd5 {[%clk 0:00:25]}  Bg7 {[%clk 0:00:24]} 33. Rb7+ {[%clk 0:00:25]}  Ke6 {[%clk 0:00:23]} 34. Nc7+ {[%clk 0:00:25]}  Kd7 {[%clk 0:00:20]} 35. Nxe8+ {[%clk 0:00:26]}  Kxe8 {[%clk 0:00:18]} 36. Rxg7 {[%clk 0:00:26]} 1-0


[Site "https://www.chess.com"]

[Event "Titled Tuesday Blitz November 14 Early 2023"]
[White "Dragun, Kamil"]
[Black "Nakamura, Hikaru"]
[WhiteFideId "1134167"]
[BlackFideId "2016192"]
[WhiteElo "2815"]
[BlackElo "3329"]
[Result "0-1"]
[Round "3"]
[TimeControl "180+1"]
[Date "2023.11.14"]
[WhiteClock "0:00:00"]
[BlackClock "0:00:20"]
[Board "1"]

1. d4 {[%clk 0:02:51]}  a6 {[%clk 0:02:58]} 2. c4 {[%clk 0:02:50]}  b5 {[%clk 0:02:58]} 3. e4 {[%clk 0:02:47]}  Bb7 {[%clk 0:02:55]} 4. Qc2 {[%clk 0:02:41]}  bxc4 {[%clk 0:02:54]} 5. Bxc4 {[%clk 0:02:40]}  e6 {[%clk 0:02:54]} 6. Nf3 {[%clk 0:02:39]}  Nf6 {[%clk 0:02:52]} 7. Nc3 {[%clk 0:02:35]}  Bb4 {[%clk 0:02:49]} 8. Bd3 {[%clk 0:02:35]}  d5 {[%clk 0:02:39]} 9. Qa4+ {[%clk 0:02:24]}  Bc6 {[%clk 0:02:24]} 10. Qxb4 {[%clk 0:02:15]}  dxe4 {[%clk 0:02:24]} 11. Nxe4 {[%clk 0:02:13]}  Nxe4 {[%clk 0:02:23]} 12. O-O {[%clk 0:02:09]}  Nd6 {[%clk 0:02:19]} 13. Ne5 {[%clk 0:02:07]}  O-O {[%clk 0:02:16]} 14. Bf4 {[%clk 0:02:02]}  Bd5 {[%clk 0:01:55]} 15. Rac1 {[%clk 0:02:01]}  f6 {[%clk 0:01:55]} 16. Nc4 {[%clk 0:02:00]}  Nc6 {[%clk 0:01:55]} 17. Qa4 {[%clk 0:01:30]}  Nxc4 {[%clk 0:01:38]} 18. Bxc4 {[%clk 0:01:31]}  Nxd4 {[%clk 0:01:38]} 19. Bxd5 {[%clk 0:01:05]}  Qxd5 {[%clk 0:01:34]} 20. Rxc7 {[%clk 0:01:02]}  Rac8 {[%clk 0:00:53]} 21. Rxc8 {[%clk 0:00:53]}  Rxc8 {[%clk 0:00:54]} 22. Be3 {[%clk 0:00:48]}  Ne2+ {[%clk 0:00:51]} 23. Kh1 {[%clk 0:00:48]}  Qb5 {[%clk 0:00:52]} 24. Qxb5 {[%clk 0:00:44]}  axb5 {[%clk 0:00:52]} 25. a3 {[%clk 0:00:29]}  Rc2 {[%clk 0:00:48]} 26. Rb1 {[%clk 0:00:29]}  e5 {[%clk 0:00:44]} 27. g3 {[%clk 0:00:30]}  f5 {[%clk 0:00:42]} 28. Kg2 {[%clk 0:00:31]}  f4 {[%clk 0:00:43]} 29. gxf4 {[%clk 0:00:27]}  exf4 {[%clk 0:00:44]} 30. Bb6 {[%clk 0:00:26]}  g5 {[%clk 0:00:42]} 31. Kf3 {[%clk 0:00:21]}  Kf7 {[%clk 0:00:42]} 32. h3 {[%clk 0:00:20]}  Kg6 {[%clk 0:00:37]} 33. Re1 {[%clk 0:00:19]}  Nc1 {[%clk 0:00:37]} 34. Re6+ {[%clk 0:00:18]}  Kf5 {[%clk 0:00:37]} 35. Re7 {[%clk 0:00:17]}  h5 {[%clk 0:00:34]} 36. Rf7+ {[%clk 0:00:16]}  Kg6 {[%clk 0:00:34]} 37. Rc7 {[%clk 0:00:16]}  Rxc7 {[%clk 0:00:32]} 38. Bxc7 {[%clk 0:00:17]}  Kf5 {[%clk 0:00:33]} 39. Bb8 {[%clk 0:00:12]}  g4+ {[%clk 0:00:32]} 40. hxg4+ {[%clk 0:00:12]}  hxg4+ {[%clk 0:00:33]} 41. Kg2 {[%clk 0:00:13]}  f3+ {[%clk 0:00:27]} 42. Kf1 {[%clk 0:00:12]}  Ke4 {[%clk 0:00:26]} 43. Ba7 {[%clk 0:00:12]}  Kd3 {[%clk 0:00:24]} 44. Ke1 {[%clk 0:00:11]}  Kc2 {[%clk 0:00:23]} 45. b4 {[%clk 0:00:05]}  Nd3+ {[%clk 0:00:24]} 46. Kf1 {[%clk 0:00:05]}  Kb3 {[%clk 0:00:24]} 47. Kg1 {[%clk 0:00:06]}  Nf4 {[%clk 0:00:25]} 48. Kh2 {[%clk 0:00:06]}  Ne2 {[%clk 0:00:25]} 49. Bc5 {[%clk 0:00:03]}  Kxa3 {[%clk 0:00:26]} 50. Bd6 {[%clk 0:00:02]}  Kb3 {[%clk 0:00:26]} 51. Bc5 {[%clk 0:00:03]}  Kc4 {[%clk 0:00:27]} 52. Bd6 {[%clk 0:00:04]}  Kd3 {[%clk 0:00:27]} 53. Bc5 {[%clk 0:00:05]}  Kd2 {[%clk 0:00:26]} 54. Bd6 {[%clk 0:00:05]}  Ke1 {[%clk 0:00:26]} 55. Bc5 {[%clk 0:00:06]}  Kf1 {[%clk 0:00:20]} 56. Bb6 {[%clk 0:00:07]}  Nc1 {[%clk 0:00:18]} 57. Kg3 {[%clk 0:00:06]}  Nd3 {[%clk 0:00:18]} 58. Bc5 {[%clk 0:00:03]}  Ke2 {[%clk 0:00:18]} 59. Bd4 {[%clk 0:00:03]}  Nxb4 {[%clk 0:00:19]} 60. Kxg4 {[%clk 0:00:03]}  Nd3 {[%clk 0:00:19]} 61. Kg3 {[%clk 0:00:00]}  b4 {[%clk 0:00:20]} 0-1


[Site "https://www.chess.com"]

[Event "Titled Tuesday Blitz November 14 Early 2023"]
[White "Gharibyan, Mamikon"]
[Black "Nihal Sarin"]
[WhiteFideId "13308300"]
[BlackFideId "25092340"]
[WhiteElo "2814"]
[BlackElo "3120"]
[Result "0-1"]
[Round "3"]
[TimeControl "180+1"]
[Date "2023.11.14"]
[WhiteClock "0:00:00"]
[BlackClock "0:00:02"]
[Board "3"]

1. e4 {[%clk 0:03:00]}  c5 {[%clk 0:02:52]} 2. Nf3 {[%clk 0:03:00]}  g6 {[%clk 0:02:49]} 3. c3 {[%clk 0:02:59]}  d5 {[%clk 0:02:47]} 4. e5 {[%clk 0:02:51]}  a6 {[%clk 0:02:45]} 5. d4 {[%clk 0:02:50]}  Nc6 {[%clk 0:02:45]} 6. h3 {[%clk 0:02:49]}  Bg7 {[%clk 0:02:23]} 7. Bd3 {[%clk 0:02:39]}  f6 {[%clk 0:02:22]} 8. exf6 {[%clk 0:01:51]}  Nxf6 {[%clk 0:02:23]} 9. O-O {[%clk 0:01:52]}  O-O {[%clk 0:02:21]} 10. Re1 {[%clk 0:01:47]}  cxd4 {[%clk 0:02:01]} 11. cxd4 {[%clk 0:01:44]}  Nh5 {[%clk 0:02:01]} 12. Bf1 {[%clk 0:01:32]}  Nf4 {[%clk 0:01:34]} 13. Nc3 {[%clk 0:01:30]}  Qd6 {[%clk 0:01:34]} 14. Be3 {[%clk 0:01:17]}  g5 {[%clk 0:00:53]} 15. Ne5 {[%clk 0:00:50]}  Be6 {[%clk 0:00:28]} 16. Nxc6 {[%clk 0:00:38]}  bxc6 {[%clk 0:00:29]} 17. Be2 {[%clk 0:00:22]}  Rf7 {[%clk 0:00:07]} 18. Rc1 {[%clk 0:00:18]}  Raf8 {[%clk 0:00:07]} 19. Bg4 {[%clk 0:00:16]}  Bxg4 {[%clk 0:00:05]} 20. hxg4 {[%clk 0:00:09]}  e5 {[%clk 0:00:06]} 21. dxe5 {[%clk 0:00:04]}  Bxe5 {[%clk 0:00:07]} 22. Ne2 {[%clk 0:00:02]}  Qh6 {[%clk 0:00:04]} 23. Ng3 {[%clk 0:00:02]}  Nh3+ {[%clk 0:00:02]} 24. gxh3 {[%clk 0:00:00]}  Bxg3 {[%clk 0:00:02]} 0-1


[Site "https://www.chess.com"]

[Event "Titled Tuesday Blitz November 14 Early 2023"]
[White "Andreikin, Dmitry"]
[Black "Materia, Marco"]
[WhiteFideId "4158814"]
[BlackFideId "45150451"]
[WhiteElo "3118"]
[BlackElo "2813"]
[Result "1-0"]
[Round "3"]
[TimeControl "180+1"]
[Date "2023.11.14"]
[WhiteClock "0:00:07"]
[BlackClock "0:00:48"]
[Board "4"]

1. d4 {[%clk 0:03:00]}  Nf6 {[%clk 0:03:00]} 2. c4 {[%clk 0:03:00]}  e6 {[%clk 0:03:00]} 3. Nf3 {[%clk 0:03:00]}  d5 {[%clk 0:03:01]} 4. Bg5 {[%clk 0:03:00]}  Be7 {[%clk 0:02:58]} 5. e3 {[%clk 0:02:59]}  c6 {[%clk 0:02:56]} 6. Nbd2 {[%clk 0:02:55]}  Nbd7 {[%clk 0:02:56]} 7. Bd3 {[%clk 0:02:55]}  O-O {[%clk 0:02:56]} 8. O-O {[%clk 0:02:55]}  h6 {[%clk 0:02:55]} 9. Bf4 {[%clk 0:02:51]}  b6 {[%clk 0:02:53]} 10. cxd5 {[%clk 0:02:49]}  cxd5 {[%clk 0:02:51]} 11. Rc1 {[%clk 0:02:48]}  Ne8 {[%clk 0:02:47]} 12. Qa4 {[%clk 0:02:24]}  Bb7 {[%clk 0:02:45]} 13. Bb5 {[%clk 0:02:22]}  Ndf6 {[%clk 0:02:39]} 14. Ne5 {[%clk 0:02:21]}  a6 {[%clk 0:02:36]} 15. Bc6 {[%clk 0:02:15]}  b5 {[%clk 0:02:35]} 16. Qb3 {[%clk 0:02:08]}  Qb6 {[%clk 0:02:26]} 17. a4 {[%clk 0:02:04]}  Nd6 {[%clk 0:02:23]} 18. a5 {[%clk 0:01:46]}  Qa7 {[%clk 0:02:16]} 19. Qd3 {[%clk 0:01:31]}  Rac8 {[%clk 0:02:12]} 20. b3 {[%clk 0:01:30]}  Qa8 {[%clk 0:02:08]} 21. Qc2 {[%clk 0:01:16]}  Nh5 {[%clk 0:02:00]} 22. Ndf3 {[%clk 0:01:06]}  Nxf4 {[%clk 0:01:59]} 23. exf4 {[%clk 0:01:07]}  Ne4 {[%clk 0:01:53]} 24. Bxb7 {[%clk 0:00:58]}  Qxb7 {[%clk 0:01:52]} 25. Qe2 {[%clk 0:00:43]}  Rxc1 {[%clk 0:01:51]} 26. Rxc1 {[%clk 0:00:44]}  Rc8 {[%clk 0:01:51]} 27. Rc2 {[%clk 0:00:44]}  Bb4 {[%clk 0:01:47]} 28. g4 {[%clk 0:00:39]}  Bxa5 {[%clk 0:01:45]} 29. g5 {[%clk 0:00:40]}  hxg5 {[%clk 0:01:42]} 30. Nxg5 {[%clk 0:00:39]}  Nxg5 {[%clk 0:01:35]} 31. fxg5 {[%clk 0:00:39]}  Rxc2 {[%clk 0:01:35]} 32. Qxc2 {[%clk 0:00:39]}  Bc7 {[%clk 0:01:36]} 33. Nd3 {[%clk 0:00:30]}  Bd6 {[%clk 0:01:34]} 34. b4 {[%clk 0:00:30]}  g6 {[%clk 0:01:32]} 35. Kg2 {[%clk 0:00:29]}  Kg7 {[%clk 0:01:31]} 36. h4 {[%clk 0:00:26]}  Qa7 {[%clk 0:01:28]} 37. Qc3 {[%clk 0:00:24]}  Qa8 {[%clk 0:01:23]} 38. Nc5 {[%clk 0:00:23]}  Qh8 {[%clk 0:01:22]} 39. Qf3 {[%clk 0:00:19]}  Be7 {[%clk 0:01:12]} 40. Qf4 {[%clk 0:00:18]}  Qd8 {[%clk 0:01:09]} 41. Nxa6 {[%clk 0:00:14]}  Qd6 {[%clk 0:01:07]} 42. Qxd6 {[%clk 0:00:12]}  Bxd6 {[%clk 0:01:07]} 43. Nc5 {[%clk 0:00:11]}  Bxc5 {[%clk 0:01:05]} 44. dxc5 {[%clk 0:00:10]}  Kf8 {[%clk 0:01:06]} 45. f4 {[%clk 0:00:08]}  Ke7 {[%clk 0:01:03]} 46. Kf3 {[%clk 0:00:09]}  f6 {[%clk 0:00:55]} 47. h5 {[%clk 0:00:07]}  gxh5 {[%clk 0:00:51]} 48. g6 {[%clk 0:00:08]}  h4 {[%clk 0:00:51]} 49. g7 {[%clk 0:00:06]}  Kf7 {[%clk 0:00:51]} 50. c6 {[%clk 0:00:07]}  Kxg7 {[%clk 0:00:48]} 51. c7 {[%clk 0:00:07]} 1-0


[Site "https://www.chess.com"]